Cogmind - Beta 10.2 @@@ ROGUE MODE // 2021.03.28 @ 10:55:35 Player: ChromeKnight Result: Destroyed by as-49571 with Assembled Blade Performance ------------- Evolutions (0) 0 Regions Visited (4) 800 Robots Destroyed (11) 55 Value Destroyed (88) 88 Prototype IDs (0) 0 Alien Tech Used (0) 0 Bonus (0) 0 TOTAL SCORE: 943 Bonus ------- None Cogmind --------- Core Integrity 0/250 Matter 245/300 Energy 40/100 System Corruption 11% Temperature Cool (9) Movement Core (400) Ox7 Location -9/Mines Parts ------- > --- POWER (1) -------- (None) > --- PROPULSION (2) --- (None) > --- UTILITY (2) ------ Large Storage Unit > --- WEAPON (2) ------- Particle Cannon Light Cannon > --- INVENTORY (10) --- Improved Ion Engine Wheel Light Armor Plating Heavy EM Pulse Gun Beam Rifle Mining Laser Hammer Ripper Peak State ------------ > --- POWER ------------ Improved Ion Engine > --- PROPULSION ------- Compact Wheel Armored Wheel > --- UTILITY ---------- Large Storage Unit Medium Armor Plating > --- WEAPON ----------- Light Cannon Light Cannon > --- INVENTORY -------- Improved Ion Engine Wheel Light Armor Plating Heavy EM Pulse Gun Beam Rifle Light Cannon Mining Laser Hammer Ripper [Rating: 11] Favorites ----------- Power Ion Engine Engine Ion Engine Propulsion Wheel Wheel Wheel Utility Large Storage Unit Storage Large Storage Unit Protection Medium Armor Plating Weapon Light Cannon Energy Gun Small Laser Energy Cannon Particle Cannon Ballistic Cannon Light Cannon Build | -11 -10 -10 -10 -9 ------- Run | Scr Mat Min Exi Min Slots Evolved . | . . . . . Power . | . . . . . Propulsion . | . . . . . Utility . | . . . . . Weapon . | . . . . . Parts Attached 25 | 6 6 3 . 10 Power 3 | 1 . 1 . 1 Engine 3 | 1 . 1 . 1 Core . | . . . . . Reactor . | . . . . . Propulsion 10 | 2 3 2 . 3 Treads . | . . . . . Leg . | . . . . . Wheel 10 | 2 3 2 . 3 Hover . | . . . . . Flight . | . . . . . Utility 4 | 1 1 . . 2 Device . | . . . . . Storage 2 | 1 1 . . . Processor . | . . . . . Hackware . | . . . . . Protection 2 | . . . . 2 Artifact . | . . . . . Weapon 8 | 2 2 . . 4 Energy Gun 2 | 2 . . . . Energy Cannon 1 | . . . . 1 Ballistic Gun . | . . . . . Ballistic Cannon 5 | . 2 . . 3 Launcher . | . . . . . Special Weapon . | . . . . . Impact Weapon . | . . . . . Slashing Weapon . | . . . . . Piercing Weapon . | . . . . . Special Melee Weapon . | . . . . . Unidentified Prototypes . | . . . . . Parts Lost 6 | . . 1 . 5 Power 2 | . . 1 . 1 Propulsion 2 | . . . . 2 Utility . | . . . . . Weapon 2 | . . . . 2 Highest Loss Streak 5 | . . 1 . 5 Average Slot Usage (%) 84 | . 84 80 85 91 Engine 12 | . 14 9 14 13 Wheel 27 | . 27 28 28 27 Storage 14 | . 14 14 14 14 Protection 1 | . . . . 8 Energy Gun 1 | . 5 . . . Ballistic Cannon 26 | . 22 28 28 27 Naked Turns . | . . . . . Heaviest Build 36 | 12 27 27 25 36 Greatest Support 32 | 20 32 26 26 28 Greatest Overweight (x) 2 | 2 1 1 . 1 Average Overweight (x) . | . . . . . Largest Inventory Capacity 12 | 6 12 10 10 10 Average Capacity 9 | 5 9 10 10 10 Most Carried 10 | 1 9 10 10 10 Average Carried 8 | . 6 9 10 9 Final Capacity 10 | 6 10 10 10 10 Final Carried 10 | 1 9 10 10 8 Class Distribution -------------------- 100% | Mutant Dominant Class ---------------- Mutant | -10/Materials Mutant | -10/Mines Mutant | -10/Exiles Mutant | -9/Mines Resources | -11 -10 -10 -10 -9 ----------- Run | Scr Mat Min Exi Min Matter Collected 657 | 227 76 158 . 196 Remotely . | . . . . . Salvage Created 245 | . 76 158 . 11 Parts 19 | . 7 12 . . Haulers Intercepted 1 | . 1 . . . Recyclers Shooed . | . . . . . Parts Field Recycled . | . . . . . Retrieved Matter . | . . . . . Parts Self-Destructed . | . . . . . Prevented . | . . . . . Kills | -11 -10 -10 -10 -9 ------- Run | Scr Mat Min Exi Min Combat Hostiles Destroyed 9 | . 3 3 . 3 Cannons 9 | . 3 3 . 3 Classes Destroyed 5 | . 2 2 . 1 Tunneler 2 | . . 2 . . Hauler 1 | . 1 . . . Recycler 2 | . . 2 . . Swarmer 6 | . 3 3 . . Assembled 3 | . . . . 3 Best Kill Streak 3 | . 3 2 . 3 Combat Bots Only 3 | . 3 2 . 3 Max Kills in Single Turn 1 | . 1 1 . 1 Gunslinging . | . . . . . Exploded . | . . . . . Melee . | . . . . . Uniques/NPCs Destroyed . | . . . . . Combat | -11 -10 -10 -10 -9 -------- Run | Scr Mat Min Exi Min Damage Taken 1090 | . 132 156 . 802 Core 268 | . 25 16 . 227 Absorbed by Shields . | . . . . . Core Remaining (%) 100 | 100 . . . . Volleys Fired 38 | . 9 21 . 8 Largest 2 | . 2 2 . 2 Hottest 103 | . 70 70 . 103 Shots Fired 74 | . 18 42 . 14 Gun . | . . . . . Cannon 74 | . 18 42 . 14 Launcher . | . . . . . Special . | . . . . . Kinetic 73 | . 18 42 . 13 Thermal 1 | . . . . 1 Explosive . | . . . . . Electromagnetic . | . . . . . Robot Hit Streak 5 | . 4 5 . 5 Robot Miss Streak 5 | . 4 5 . 3 Penetration Max . | . . . . . Secondary Targets . | . . . . . Shots Hit Robots 35 | . 8 19 . 8 Core Hits 17 | . 4 7 . 6 Critical Hits 1 | . 1 . . . Critical Kills . | . . . . . Critical Parts Destroyed 1 | . 1 . . . Melee Attacks . | . . . . . Impact . | . . . . . Slashing . | . . . . . Piercing . | . . . . . Sneak Attacks . | . . . . . Combat Hostiles . | . . . . . Follow-up Attacks . | . . . . . Damage Inflicted 607 | . 138 337 . 132 Guns . | . . . . . Cannons 607 | . 138 337 . 132 Explosions . | . . . . . Melee . | . . . . . Ramming . | . . . . . Kinetic 587 | . 138 337 . 112 Thermal 20 | . . . . 20 Explosive . | . . . . . Electromagnetic . | . . . . . Impact . | . . . . . Slashing . | . . . . . Piercing . | . . . . . Highest Corruption 11 | . . . . 11 Average Corruption 10 | . . . . 10 Corruption Purged . | . . . . . Effects 2 | . . . . 2 Energy Discharges 1 | . . . . 1 Targeting Errors 1 | . . . . 1 Overload Shots . | . . . . . Overflow Damage . | . . . . . Projectiles . | . . . . . Explosions . | . . . . . Melee . | . . . . . Knockbacks 13 | . 2 5 . 6 Impact . | . . . . . Kinetic 12 | . 2 5 . 5 Secondary 1 | . . . . 1 Self-Inflicted Damage . | . . . . . Shots . | . . . . . Rammed . | . . . . . Targets Rammed . | . . . . . Kicked . | . . . . . Crushed . | . . . . . Highest Temperature 72 | . 72 63 . 57 Average Temperature 28 | . 33 23 . 30 Received Heat Transfer . | . . . . . Siege Activations . | . . . . . Robots Corrupted . | . . . . . Combat Hostiles . | . . . . . Parts Fried . | . . . . . Impact Corruptions . | . . . . . Robots Melted . | . . . . . Combat Hostiles . | . . . . . Parts Melted . | . . . . . Heat Transferred 37 | . . . . 37 Parts Sabotaged . | . . . . . Parts Stolen . | . . . . . Parts Stripped . | . . . . . Power Chain Reactions . | . . . . . Missiles Intercepted . | . . . . . Alert | -11 -10 -10 -10 -9 ------- Run | Scr Mat Min Exi Min Peak Influence 129 | . 89 129 . . Initial 34 | . . 34 . . Average 40 | . 30 82 . . Maximum Alert Level . | . . . . . Low Security (%) 100 | 100 100 100 . 100 Level 1 . | . . . . . Level 2 . | . . . . . Level 3 . | . . . . . Level 4 . | . . . . . Level 5 . | . . . . . High Security . | . . . . . Max Security . | . . . . . Squads Dispatched . | . . . . . Investigation . | . . . . . Extermination . | . . . . . Reinforcement . | . . . . . Assault . | . . . . . Garrison . | . . . . . Intercept . | . . . . . Construction Impeded . | . . . . . Haulers Reinforced . | . . . . . Stealth | -11 -10 -10 -10 -9 --------- Run | Scr Mat Min Exi Min Distress Signals 1 | . 1 . . . Communications Jammed . | . . . . . Distress Signals . | . . . . . Times Spotted 18 | . 4 3 . 11 Peak Tracking Total 8 | . 4 3 . 8 Tactical Retreats 1 | . . 1 . . Traps | -11 -10 -10 -10 -9 ------- Run | Scr Mat Min Exi Min Traps Triggered . | . . . . . Indirectly . | . . . . . Trap Hack Attempts . | . . . . . Triggered . | . . . . . Disarmed . | . . . . . Reprogrammed . | . . . . . Reused . | . . . . . Traps Extracted . | . . . . . Installed . | . . . . . Triggered . | . . . . . Machines | -11 -10 -10 -10 -9 ---------- Run | Scr Mat Min Exi Min Machines Disabled . | . . . . . Max in Single Turn . | . . . . . Machines Sabotaged . | . . . . . Garrisons Compromised . | . . . . . Overloaded Fab Kills . | . . . . . Fab Network Shutdowns . | . . . . . Hacking | -11 -10 -10 -10 -9 --------- Run | Scr Mat Min Exi Min Machines Accessed 2 | . 2 . . . Terminals 2 | . 2 . . . Fabricators . | . . . . . Repair Stations . | . . . . . Recycling Units . | . . . . . Scanalyzers . | . . . . . Garrison Access . | . . . . . Total Hacks 2 | . 2 . . . Successful 2 | . 2 . . . Failed . | . . . . . Catastrophic . | . . . . . Database Lockouts . | . . . . . Manual 1 | . 1 . . . Terminals 2 | . 2 . . . Fabricators . | . . . . . Repair Stations . | . . . . . Recycling Units . | . . . . . Scanalyzers . | . . . . . Garrison Access . | . . . . . Terminal Hacks 2 | . 2 . . . Robot Analysis 1 | . 1 . . . Branch Access Points 1 | . 1 . . . Fabricator Hacks . | . . . . . Repair Station Hacks . | . . . . . Recycling Unit Hacks . | . . . . . Scanalyzer . | . . . . . Garrison Access Hacks . | . . . . . Unauthorized Hacks . | . . . . . Terminals . | . . . . . Fabricators . | . . . . . Repair Stations . | . . . . . Recycling Units . | . . . . . Scanalyzers . | . . . . . Garrison Access . | . . . . . Data Cores Recovered . | . . . . . Used . | . . . . . Hacking Detections 1 | . 1 . . . Full Trace Events . | . . . . . Feedback Events . | . . . . . Feedback Blocked . | . . . . . Robot Schematics Acquired . | . . . . . Robots Built . | . . . . . Matter . | . . . . . Time . | . . . . . Total Robot Build Rating . | . . . . . Part Schematics Acquired . | . . . . . Parts Built . | . . . . . Matter . | . . . . . Time . | . . . . . Total Part Build Rating . | . . . . . Parts Repaired . | . . . . . Time . | . . . . . Parts Recycled . | . . . . . Recycled Matter . | . . . . . Retrieved Matter . | . . . . . Retrieved Components . | . . . . . Parts Scanalyzed . | . . . . . Part Schematics Acquired . | . . . . . Parts Damaged . | . . . . . Bothacking | -11 -10 -10 -10 -9 ------------ Run | Scr Mat Min Exi Min Used RIF Installer . | . . . . . Robots Hacked . | . . . . . Non-combat . | . . . . . Combat . | . . . . . Robot Hacks Applied . | . . . . . Relay Couplers Released . | . . . . . Robots Rewired . | . . . . . Allies Hacked . | . . . . . Hacks Repelled . | . . . . . Allies | -11 -10 -10 -10 -9 -------- Run | Scr Mat Min Exi Min Total Allies . | . . . . . Largest Group . | . . . . . Highest-Rated Group . | . . . . . Highest-Rated Ally . | . . . . . Total Orders . | . . . . . Ally Attacks . | . . . . . Total Damage . | . . . . . Kills . | . . . . . Allies Corrupted . | . . . . . Allies Melted . | . . . . . Intel | -11 -10 -10 -10 -9 ------- Run | Scr Mat Min Exi Min Robot Analysis Total 1 | . 1 . . . Derelict Logs Recovered . | . . . . . Drone Launches . | . . . . . Drone Recoveries . | . . . . . Exploration | -11 -10 -10 -10 -9 ------------- Run | Scr Mat Min Exi Min Turns Passed 824 | 52 225 261 112 174 Spaces Moved 663 | 53 172 195 125 118 Core 9 | 9 . . . . Treads . | . . . . . Legs . | . . . . . Wheels 654 | 44 172 195 125 118 Hover . | . . . . . Flight . | . . . . . Fastest Speed 50 | 50 80 90 90 90 Average Speed 94 | 80 98 94 90 100 Slowest Speed 150 | 150 100 100 90 105 Overloaded Moves . | . . . . . Propulsion Burnouts . | . . . . . Robots Hopped . | . . . . . Cave-ins Triggered . | . . . . . Exploration Rate (%) 34 | 3 33 60 48 27 Regions Visited 4 Branch Regions 3 Pre-discovered Areas . | . . . . . Known Exits Taken 1 | . 1 . . . Unknown Exits Taken 3 | 1 . 1 1 . Scrap Searched 1 | . . . . 1 Spaces Dug . | . . . . . Terrain Destroyed . | . . . . . Melee . | . . . . . Projectile . | . . . . . AOE . | . . . . . Terrain Rammed . | . . . . . Walls Destroyed . | . . . . . Machines Disabled . | . . . . . Actions | -11 -10 -10 -10 -9 --------- Run | Scr Mat Min Exi Min Total 783 | 59 210 229 124 161 Wait 28 | . 8 6 . 14 Move 659 | 52 171 194 124 118 Hop . | . . . . . Pick Up 16 | 1 9 2 . 4 Fast Attach 13 | 6 5 1 . 1 Attach 2 | . . . . 2 Detach . | . . . . . Swap 10 | . 1 2 . 7 Drop 17 | . 7 3 . 7 Fire 38 | . 9 21 . 8 Melee . | . . . . . Ram . | . . . . . Kick . | . . . . . Crush . | . . . . . Escape Stasis . | . . . . . Rewire . | . . . . . Trap . | . . . . . Miscellaneous . | . . . . . Route ------- -11/Scrapyard -10/Materials (discovered 2 exits: *Min x2) -10/Mines -10/Exiles -9/Mines History --------- Turn | Location | Event 22 | -11/Scrapyard | Discovered new exit (range 15) 53 | -11/Scrapyard | Entered Materials 82 | -10/Materials | Identified exit to Mines 278 | -10/Materials | Entered Mines 307 | -10/Mines | Build established: Mutant 317 | -10/Mines | A weapon hastily lodged in a ceiling crevice suddenly fell to the ground 339 | -10/Mines | Received a Rocket Launcher from a helpful Derelict 533 | -10/Mines | Deemed a non-threat by the Exiles lab entrance 534 | -10/Mines | Discovered new exit (range 5) 539 | -10/Mines | Entered Exiles 562 | -10/Exiles | Met 8R-AWN 577 | -10/Exiles | Met EX-HEX 612 | -10/Exiles | Met EX-DEC 644 | -10/Exiles | Discovered new exit (range 10) 651 | -10/Exiles | Entered Mines 687 | -9/Mines | Joined a pair of Derelicts in attacking an 0b10 outpost 786 | -9/Mines | Assembled infested the area 791 | -9/Mines | Assisted by a Guerilla fighting off Assembled 819 | -9/Mines | System corruption reached 10% 823 | -9/Mines | Core integrity fell below 50% 825 | -9/Mines | Core integrity fell below 20% 825 | -9/Mines | Destroyed by as-49571 with Assembled Blade Last Messages --------------- 00808_ K-01 Serf system corrupted by crushing effect. 00809_ K-01 Serf system terminally corrupted. 00809_ as-50337 knocked back. 00812_ as-50337 destroyed. 00813_ Med. Armor Plating severed. 00813_ U-05 Engineer destroyed. 00815_ Com. Wheel destroyed. 00815_ Imp. Ion Engine destroyed. 00815_ System corrupted by crushing effect (+4). 00815_ as-59999 knocked back. 00818_ Lgt. Cannon destroyed. 00818_ System corrupted by crushing effect (+3). 00818_ System corrupted: Lgt. Cannon targeting data glitched. 00818_ as-59999 knocked back. 00820_ as-03132 destroyed. 00820_ Lgt. Cannon destroyed. 00822_ Arm. Wheel destroyed. 00823_ System corrupted: Energy discharge (-18). 00824_ as-59999 knocked back. 00824_ as-59999 destroyed. Map ----- +----------------------------------------------------+ | ??????##### #?????????????????????????????????? | | ??????????## ##?????????????????????????????????? | | ???????????# ########???????????????????????????? | | ???????????# #?????????????????????? | | ???????????# ########???????????????????????????? | | ???????????# #??????????????????????????????????? | | ???????????# #??????????????????????????????????? | | ???????????# #??????????????????????????????????? | | ???????????# #??????????????????????????????????? | | ???????????# #??????????????????????????????????? | | ????????#### #?????????????????#????????????????? | | ????????# #?????????????? ? ?????????????????? | | ????????# ####?????????????? ?????????????????? | | ????????# #????????????????? ??????????????????? | | ????????# #??###??????????? #??????????????????? | | ????????# #?## ##?????????? ##?????????????????? | | ??????### ### #######???? ##??#?????????????? | | ??????# #???# ## #?????????????? | | ?????# """" #### #?????????????? | | ?????# """" ###### =%] * #????????????????? | | ?????# """" #????# = a%u#????????????????? | | ?????## ##????#### a| ##???????????????? | | ??????## # ##???????##%= #???????????????? | | ???????#### #?????####[[% ;## % #??????????????? | | ??????????# #????## %*% ##???? #?????????????? | | ??????????# #????# @ #??????? ?????????????? | | ?????????? ????# aa##?????????????????????? | | ??????????# ????# % ##??????????????????????? | | ??????????# ? ##???????????????????????? | | ??????????# #### #????????????????????????? | | ??????????#????## #????????????????????????? | | ????????????????# #????????????????????????? | | ????????????????## ????????????????????????? | | ?????????????????## ????????????????????????? | | ??????????????????## ????????????????????????? | | ???????????????????## ????????????????????????? | | ????????????????????## ????????????????????????? | | ??????????????????????# ????????????????????????? | | ???????????????????????#????????????????????????? | | ????????????????????????????????????????????????? | | ????????????????????????????????????????????????? | | ????????????????????????????????????????????????? | | ????????????????????????????????????????????????? | | ????????????????????????????????????????????????? | | ????????????????????????????????????????????????? | | | | | | | | | | | +----------------------------------------------------+ Best States ------------- Heat Dissipation 25 Energy Generation 12 Energy Capacity 265 Matter Stores 273 Matter Capacity 300 Sight Range 16 Terrain Scan Density 10 Armor Coverage 225 Evasion (%) 44 Item Schematics ----------------- None Robot Schematics ------------------ None Fabricated ------------ Nothing Alien Tech Used ----------------- None Achievements -------------- None Challenges ------------ None Game ------ Seed BehemothImpulseScythe Manual? 0 Play Time 00:10:35 Cumulative 100.7 hours Start 2021.03.28 @ 10:39:27 End 2021.03.28 @ 10:55:35 Sessions 1 Manual Loads 0 Difficulty Rogue Special Mode None Game No. 248 Rogue 95 Adventurer 148 Explorer 5 Win Type - Total 1 Types 1/0/0/0/0/0/0/0/0 Lore% 59 Gallery% 67 Achievement% 53 Wizard Run 0 Options --------- ASCII 0 Keyboard 0 Movement Arrows Keybinds 0 Fullscreen 1 Font 18/CogNarrow Map View 76x50 Tactical HUD 1 Map Filters NONE Filters NONE Steam 1 RUN: 9ba39fe2-eafb-432b-ab14-3e3c4cfdcfa7